[Event "Live Chess"]
[Site "Chess.com"]
[Date "2021.02.28"]
[Round "?"]
[White "Anderson, James"]
[Black "Hulme, William"]
[Result "0-1"]
[ECO "A45"]
[WhiteElo "1324"]
[BlackElo "1965"]
[PlyCount "64"]
[EventDate "2021.??.??"]
[TimeControl "1500+10"]
[WhiteClock "0:23:53"]
[BlackClock "0:21:16"]

{[%evp 0,64,36,26,39,-16,5,14,11,31,21,19,18,14,14,-6,-32,-27,-23,-12,-8,-25,
-16,-12,-16,-35,-7,-7,-22,-37,-42,-42,-42,-94,-47,-186,-176,-176,-179,-189,
-189,-206,-226,-265,-265,-326,-294,-317,-312,-285,-283,-360,-318,-412,-403,
-512,-579,-587,-618,-626,-615,-977,-481,-483,-483,-1163,-1233]} 1. d4 {[%emt 0:
00:00]} Nf6 {[%emt 0:00:00]} 2. Bg5 {[%emt 0:00:04]} Ne4 {[%emt 0:00:05]} 3.
Bf4 {[%emt 0:00:03]} d5 {[%emt 0:00:04]} 4. f3 {[%emt 0:00:41]} Nf6 {[%emt 0:
00:05]} 5. e3 {[%emt 0:00:10]} e6 {[%emt 0:00:03]} 6. Bd3 {[%emt 0:00:01]} c5 {
[%emt 0:00:06]} 7. c3 {[%emt 0:00:02]} Nc6 {[%emt 0:00:01]} 8. Nd2 {[%emt 0:00:
03]} Nh5 {[%emt 0:00:06]} 9. Bg3 {[%emt 0:00:02]} Qb6 {[%emt 0:01:09]} 10. Qb3
{[%emt 0:00:20]} c4 {[%emt 0:00:04]} 11. Qxb6 {[%emt 0:00:02]} axb6 {[%emt 0:
00:03]} 12. Bc2 {[%emt 0:00:01]} Nxg3 {[%emt 0:00:10]} 13. hxg3 {[%emt 0:00:03]
} b5 {[%emt 0:00:15]} 14. Rxh7 {[%emt 0:00:13]} Rxh7 {[%emt 0:00:06]} 15. Bxh7
{[%emt 0:00:02]} g6 {[%emt 0:00:05]} 16. f4 {[%emt 0:00:03]} Ke7 {[%emt 0:00:
36]} 17. Ke2 {[%emt 0:00:26]} Kf6 {[%emt 0:00:09]} 18. Ngf3 {[%emt 0:00:01]}
Kg7 {[%emt 0:00:10]} 19. Bxg6 {[%emt 0:00:43]} Kxg6 {[%emt 0:00:11]} 20. g4 {
[%emt 0:00:01]} Bd7 {[%emt 0:01:51]} 21. Nh4+ {[%emt 0:00:28]} Kg7 {[%emt 0:00:
25]} 22. Ndf3 {[%emt 0:00:03]} Be7 {[%emt 0:00:11]} 23. g3 {[%emt 0:00:01]} b4
{[%emt 0:00:48]} 24. Kd2 {[%emt 0:00:36]} b5 {[%emt 0:00:34]} 25. g5 {[%emt 0:
00:58]} bxc3+ {[%emt 0:00:13]} 26. bxc3 {[%emt 0:00:02]} b4 {[%emt 0:00:05]}
27. Nh2 {[%emt 0:00:50]} bxc3+ {[%emt 0:00:26]} 28. Kxc3 {[%emt 0:00:03]} Ra3+
{[%emt 0:00:32]} 29. Kd2 {[%emt 0:00:04]} Nb4 {[%emt 0:00:08]} 30. Ng4 {
[%emt 0:00:18]} Rxa2+ {[%emt 0:00:08]} 31. Rxa2 {[%emt 0:00:02]} Nxa2 {[%emt 0:
00:02]} 32. Ne5 {[%emt 0:00:02]} c3+ {[%emt 0:00:13]} 0-1

[Event "Live Chess"]
[Site "Chess.com"]
[Date "2021.02.28"]
[Round "-"]
[White "Muir, Phil S"]
[Black "Robertson, John"]
[Result "1-0"]
[BlackElo "1226"]
[CurrentPosition "R1k3r1/4Rpr1/8/7p/P7/6p1/5P1P/6K1 b - -"]
[ECO "C00"]
[ECOUrl "https://www.chess.com/openings/French-Defense-Normal-Variation"]
[EndDate "2021.02.28"]
[EndTime "12:03:45"]
[Link "https://www.chess.com/live/game/8249109249"]
[StartTime "11:06:14"]
[Termination "felipesbistro won by checkmate"]
[TimeControl "1500+10"]
[Timezone "UTC"]
[UTCDate "2021.02.28"]
[UTCTime "11:06:14"]
[WhiteElo "1633"]

1. e4 { [%clk 0:25:10] } 1... e6 { [%clk 0:25:10] } 2. d4 { [%clk 0:25:16.5] } 2... c6 { [%clk 0:25:03.5] } 3. Nd2 { [%clk 0:24:41.5] } 3... d5 { [%clk 0:24:26.8] } 4. Ngf3 { [%clk 0:24:41.7] } 4... dxe4 { [%clk 0:24:10.1] } 5. Nxe4 { [%clk 0:24:48.5] } 5... Nf6 { [%clk 0:20:44.2] } 6. Nxf6+ { [%clk 0:24:08.9] } 6... gxf6 { [%clk 0:20:45.7] } 7. Bd3 { [%clk 0:22:17.7] } 7... h5 { [%clk 0:19:19.4] } 8. Qe2 { [%clk 0:20:09] } 8... Qe7 { [%clk 0:16:19.5] } 9. Bf4 { [%clk 0:17:46.5] } 9... Bh6 { [%clk 0:15:30.5] } 10. Bxh6 { [%clk 0:16:52.3] } 10... Rxh6 { [%clk 0:15:37.3] } 11. O-O { [%clk 0:16:51.4] } 11... Nd7 { [%clk 0:14:59.9] } 12. Rfe1 { [%clk 0:16:27.3] } 12... Nf8 { [%clk 0:13:18.9] } 13. Qe3 { [%clk 0:13:21.1] } 13... Rh8 { [%clk 0:13:12.8] } 14. c4 { [%clk 0:12:33.2] } 14... Ng6 { [%clk 0:12:06.4] } 15. Rad1 { [%clk 0:10:55] } 15... Bd7 { [%clk 0:08:54.2] } 16. c5 { [%clk 0:08:52.4] } 16... O-O-O { [%clk 0:08:02.9] } 17. b4 { [%clk 0:08:50.1] } 17... Rdg8 { [%clk 0:06:27] } 18. a4 { [%clk 0:08:27.6] } 18... Qd8 { [%clk 0:05:48.5] } 19. Nd2 { [%clk 0:08:02.8] } 19... Ne7 { [%clk 0:03:50.9] } 20. Ne4 { [%clk 0:06:45.5] } 20... Nf5 { [%clk 0:03:36.5] } 21. Nd6+ { [%clk 0:04:58.6] } 21... Nxd6 { [%clk 0:03:41.9] } 22. cxd6 { [%clk 0:05:05.9] } 22... Kb8 { [%clk 0:03:20.2] } 23. b5 { [%clk 0:04:05.2] } 23... Rg5 { [%clk 0:03:21.5] } 24. bxc6 { [%clk 0:03:50.3] } 24... Bxc6 { [%clk 0:03:29] } 25. Be4 { [%clk 0:03:49.9] } 25... Qxd6 { [%clk 0:03:27.8] } 26. Bxc6 { [%clk 0:03:48.3] } 26... Qxc6 { [%clk 0:03:35.4] } 27. Qf4+ { [%clk 0:03:19.2] } 27... e5 { [%clk 0:02:18.5] } 28. Qe4 { [%clk 0:02:31] } 28... Qxe4 { [%clk 0:01:36.7] } 29. Rxe4 { [%clk 0:02:36.8] } 29... exd4 { [%clk 0:01:41.8] } 30. Rdxd4 { [%clk 0:02:43.6] } 30... Rhg8 { [%clk 0:01:48.5] } 31. g3 { [%clk 0:02:51.6] } 31... f5 { [%clk 0:01:44.7] } 32. Re7 { [%clk 0:02:51.3] } 32... R5g7 { [%clk 0:01:36.6] } 33. Rdd7 { [%clk 0:02:53.3] } 33... f4 { [%clk 0:01:14.1] } 34. Rxb7+ { [%clk 0:02:57.3] } 34... Kc8 { [%clk 0:01:19.4] } 35. Rxa7 { [%clk 0:03:04.4] } 35... fxg3 { [%clk 0:01:24.8] } 36. Ra8# { [%clk 0:03:12.6] } 1-0

[Event "Live Chess"]
[Site "Chess.com"]
[Date "2021.02.28"]
[Round "-"]
[White "Brownlee, Ian G"]
[Black "Chalmers, Martin M"]
[Result "0-1"]
[BlackElo "1426"]
[CurrentPosition "r4r1k/1pp3pp/p2p4/1bPPp3/1P3p2/PBQ1nPq1/3K1RPN/2N5 w - -"]
[ECO "A84"]
[ECOUrl "https://www.chess.com/openings/Dutch-Defense-Classical-Variation"]
[EndDate "2021.02.28"]
[EndTime "11:39:42"]
[Link "https://www.chess.com/live/game/8249027781"]
[StartTime "11:00:02"]
[Termination "martinchalmers won by resignation"]
[TimeControl "1500+10"]
[Timezone "UTC"]
[UTCDate "2021.02.28"]
[UTCTime "11:00:02"]
[WhiteElo "1743"]

1. d4 { [%clk 0:25:10] } 1... e6 { [%clk 0:25:10] } 2. c4 { [%clk 0:25:13.2] } 2... f5 { [%clk 0:25:06.2] } 3. Nc3 { [%clk 0:25:20.1] } 3... Nf6 { [%clk 0:25:10.9] } 4. Bg5 { [%clk 0:25:26.4] } 4... Be7 { [%clk 0:25:04.2] } 5. Nf3 { [%clk 0:25:30.4] } 5... d6 { [%clk 0:25:05.6] } 6. e3 { [%clk 0:25:38.8] } 6... O-O { [%clk 0:24:47.7] } 7. Bd3 { [%clk 0:25:43.5] } 7... Nc6 { [%clk 0:24:35] } 8. O-O { [%clk 0:25:49.7] } 8... Nb4 { [%clk 0:24:22.1] } 9. Bb1 { [%clk 0:25:53.3] } 9... Ng4 { [%clk 0:23:26.3] } 10. Bxe7 { [%clk 0:26:00.5] } 10... Qxe7 { [%clk 0:23:33.8] } 11. a3 { [%clk 0:26:08.8] } 11... Nc6 { [%clk 0:23:41.2] } 12. e4 { [%clk 0:25:58.4] } 12... f4 { [%clk 0:23:26.8] } 13. Qd3 { [%clk 0:25:59.4] } 13... e5 { [%clk 0:22:44.3] } 14. b4 { [%clk 0:25:43.1] } 14... a6 { [%clk 0:21:41.3] } 15. d5 { [%clk 0:25:29.8] } 15... Nd8 { [%clk 0:21:15.8] } 16. Ba2 { [%clk 0:25:17.6] } 16... Nf7 { [%clk 0:20:04.8] } 17. h3 { [%clk 0:23:04.6] } 17... Nf6 { [%clk 0:20:01.3] } 18. Rac1 { [%clk 0:23:05.5] } 18... Bd7 { [%clk 0:18:38.6] } 19. Bb3 { [%clk 0:21:24.7] } 19... Nh6 { [%clk 0:18:31.7] } 20. c5 { [%clk 0:21:08.3] } 20... Kh8 { [%clk 0:18:08.7] } 21. Ne2 { [%clk 0:21:01.3] } 21... Qe8 { [%clk 0:16:23.3] } 22. Rc3 { [%clk 0:20:27] } 22... Qg6 { [%clk 0:16:10.6] } 23. Nh2 { [%clk 0:19:37.7] } 23... Nxe4 { [%clk 0:14:54.6] } 24. f3 { [%clk 0:19:36.7] } 24... Nxc3 { [%clk 0:13:46.6] } 25. Qxc3 { [%clk 0:19:42.4] } 25... Bxh3 { [%clk 0:12:25.1] } 26. Rf2 { [%clk 0:19:51] } 26... Bd7 { [%clk 0:10:44.1] } 27. Kf1 { [%clk 0:17:02.9] } 27... Nf5 { [%clk 0:10:00.2] } 28. Ke1 { [%clk 0:16:01.5] } 28... Ne3 { [%clk 0:09:41.7] } 29. Kd2 { [%clk 0:14:58.7] } 29... Bb5 { [%clk 0:08:37] } 30. Nc1 { [%clk 0:13:19] } 30... Qg3 { [%clk 0:07:36.1] } 0-1

[Event "Live Chess"]
[Site "Chess.com"]
[Date "2021.02.28"]
[Round "-"]
[White "Murray, Euan"]
[Black "Thomson, Peter"]
[Result "1-0"]
[BlackElo "1368"]
[CurrentPosition "2r5/2k3R1/Q7/pp1pPp1P/8/8/PPP2P2/2K5 b - -"]
[ECO "B18"]
[ECOUrl "https://www.chess.com/openings/Caro-Kann-Defense-Classical-Variation-5.Ng3-Bg6-6.h4-h6-7.h5"]
[EndDate "2021.02.28"]
[EndTime "11:22:06"]
[Link "https://www.chess.com/live/game/8249072851"]
[StartTime "11:03:42"]
[Termination "Brooner_85 won by resignation"]
[TimeControl "1500+10"]
[Timezone "UTC"]
[UTCDate "2021.02.28"]
[UTCTime "11:03:42"]
[WhiteElo "1906"]

1. e4 { [%clk 0:25:10] } 1... c6 { [%clk 0:25:10] } 2. d4 { [%clk 0:25:18.6] } 2... d5 { [%clk 0:25:10.5] } 3. Nc3 { [%clk 0:25:27.6] } 3... dxe4 { [%clk 0:25:17] } 4. Nxe4 { [%clk 0:25:36.8] } 4... Bf5 { [%clk 0:25:23.3] } 5. Ng3 { [%clk 0:25:45.9] } 5... Bg6 { [%clk 0:25:30.4] } 6. h4 { [%clk 0:25:55.5] } 6... h6 { [%clk 0:25:35.7] } 7. h5 { [%clk 0:26:04.9] } 7... Bh7 { [%clk 0:25:41.6] } 8. Nf3 { [%clk 0:26:14.5] } 8... Nf6 { [%clk 0:25:19.4] } 9. Bd3 { [%clk 0:26:22.4] } 9... Bxd3 { [%clk 0:25:06.9] } 10. Qxd3 { [%clk 0:26:30.7] } 10... e6 { [%clk 0:24:57.9] } 11. Bd2 { [%clk 0:26:06.1] } 11... Bd6 { [%clk 0:24:16.2] } 12. Ne4 { [%clk 0:25:55] } 12... Nxe4 { [%clk 0:23:31.9] } 13. Qxe4 { [%clk 0:26:03.2] } 13... O-O { [%clk 0:22:54.5] } 14. O-O-O { [%clk 0:25:54] } 14... Nd7 { [%clk 0:22:40.4] } 15. g4 { [%clk 0:25:23.2] } 15... Nf6 { [%clk 0:21:54.4] } 16. Qe2 { [%clk 0:25:25.1] } 16... Nd5 { [%clk 0:21:42.2] } 17. Ne5 { [%clk 0:25:19.4] } 17... Bxe5 { [%clk 0:21:24.1] } 18. dxe5 { [%clk 0:25:25.6] } 18... Qa5 { [%clk 0:20:35.9] } 19. Bxa5 { [%clk 0:25:16.7] } 19... Nf4 { [%clk 0:19:57] } 20. Qe4 { [%clk 0:24:58.4] } 20... Nd5 { [%clk 0:19:46.9] } 21. g5 { [%clk 0:24:52.3] } 21... b5 { [%clk 0:19:41.8] } 22. gxh6 { [%clk 0:24:55.4] } 22... gxh6 { [%clk 0:19:41.6] } 23. Bd2 { [%clk 0:24:40.4] } 23... Rfd8 { [%clk 0:19:19.8] } 24. Bxh6 { [%clk 0:24:42.9] } 24... f5 { [%clk 0:19:19.5] } 25. Qg2+ { [%clk 0:24:45] } 25... Kf7 { [%clk 0:19:18] } 26. Qg6+ { [%clk 0:24:46.2] } 26... Ke7 { [%clk 0:19:16.1] } 27. Bg5+ { [%clk 0:24:51.1] } 27... Kd7 { [%clk 0:19:15.3] } 28. Qf7+ { [%clk 0:24:36.8] } 28... Kc8 { [%clk 0:19:14.9] } 29. Qxe6+ { [%clk 0:24:45.9] } 29... Kb7 { [%clk 0:19:15.1] } 30. Bxd8 { [%clk 0:24:48.3] } 30... Rxd8 { [%clk 0:19:16.8] } 31. Rhg1 { [%clk 0:24:29.8] } 31... a5 { [%clk 0:19:12] } 32. Rg6 { [%clk 0:24:32.9] } 32... Rc8 { [%clk 0:19:07.1] } 33. Rxd5 { [%clk 0:24:35.7] } 33... cxd5 { [%clk 0:19:01.1] } 34. Qa6+ { [%clk 0:24:41.9] } 34... Kc7 { [%clk 0:18:55.5] } 35. Rg7+ { [%clk 0:24:43.4] } 1-0

[Event "Live Chess"]
[Site "Chess.com"]
[Date "2021.02.28"]
[Round "-"]
[White "Kirk, Larry G"]
[Black "Callison, J Stuart"]
[Result "1/2-1/2"]
[BlackElo "1691"]
[CurrentPosition "1k1r4/ppp2ppp/4p3/4P3/5P2/P5P1/1P1r1P2/2R2RK1 w - -"]
[ECO "D02"]
[ECOUrl "https://www.chess.com/openings/Queens-Pawn-Opening-Zukertort-Variation"]
[EndDate "2021.02.28"]
[EndTime "11:43:42"]
[Link "https://www.chess.com/live/game/8249046471"]
[StartTime "11:01:31"]
[Termination "Game drawn by agreement"]
[TimeControl "1500+10"]
[Timezone "UTC"]
[UTCDate "2021.02.28"]
[UTCTime "11:01:31"]
[WhiteElo "1595"]

1. Nf3 { [%clk 0:25:10] } 1... d5 { [%clk 0:25:10] } 2. d4 { [%clk 0:25:16] } 2... Bg4 { [%clk 0:24:22.6] } 3. c4 { [%clk 0:24:14.1] } 3... Bxf3 { [%clk 0:23:25.4] } 4. gxf3 { [%clk 0:24:17] } 4... dxc4 { [%clk 0:23:11.3] } 5. e4 { [%clk 0:24:13] } 5... e6 { [%clk 0:23:08.3] } 6. Bxc4 { [%clk 0:24:17.6] } 6... Nc6 { [%clk 0:22:52.1] } 7. Be3 { [%clk 0:24:23.9] } 7... Qf6 { [%clk 0:22:22.5] } 8. e5 { [%clk 0:21:01.9] } 8... Qh4 { [%clk 0:21:44.8] } 9. Bb5 { [%clk 0:20:16.5] } 9... Bb4+ { [%clk 0:21:35] } 10. Nc3 { [%clk 0:20:08.2] } 10... Ne7 { [%clk 0:21:31.4] } 11. Bxc6+ { [%clk 0:17:26.4] } 11... Nxc6 { [%clk 0:21:21.8] } 12. f4 { [%clk 0:17:22.8] } 12... O-O-O { [%clk 0:19:32.2] } 13. a3 { [%clk 0:15:27.9] } 13... Bc5 { [%clk 0:17:44.4] } 14. Ne2 { [%clk 0:15:33.3] } 14... Nxd4 { [%clk 0:15:36.4] } 15. Nxd4 { [%clk 0:14:00.1] } 15... Bxd4 { [%clk 0:15:41.2] } 16. Qe2 { [%clk 0:13:37.8] } 16... Bxe3 { [%clk 0:14:12.8] } 17. Qxe3 { [%clk 0:13:39.6] } 17... Kb8 { [%clk 0:14:20.8] } 18. O-O { [%clk 0:10:24.1] } 18... Rd5 { [%clk 0:13:54.3] } 19. Rac1 { [%clk 0:04:53] } 19... Rhd8 { [%clk 0:13:45.3] } 20. Qg3 { [%clk 0:04:01.1] } 20... Qxg3+ { [%clk 0:11:15.5] } 21. hxg3 { [%clk 0:03:59.5] } 21... Rd2 { [%clk 0:11:22.9] } 1/2-1/2

[Event "Live Chess"]
[Site "Chess.com"]
[Date "2021.02.28"]
[Round "-"]
[White "Burt, J Mel"]
[Black "Shaheen, Jalal"]
[Result "0-1"]
[BlackElo "1135"]
[CurrentPosition "8/5R2/8/1p3pp1/6k1/6P1/1r6/6K1 w - -"]
[ECO "A20"]
[ECOUrl "https://www.chess.com/openings/English-Opening-Kings-English-Variation-2.g3"]
[EndDate "2021.02.28"]
[EndTime "12:07:54"]
[Link "https://www.chess.com/live/game/8249096733"]
[StartTime "11:05:28"]
[Termination "Seamans won by resignation"]
[TimeControl "1500+10"]
[Timezone "UTC"]
[UTCDate "2021.02.28"]
[UTCTime "11:05:28"]
[WhiteElo "1497"]

1. c4 { [%clk 0:25:10] } 1... e5 { [%clk 0:25:10] } 2. g3 { [%clk 0:25:13.4] } 2... c6 { [%clk 0:25:09.4] } 3. d4 { [%clk 0:24:38.3] } 3... exd4 { [%clk 0:23:56.9] } 4. Qxd4 { [%clk 0:24:35.3] } 4... Nf6 { [%clk 0:23:19.9] } 5. Bg2 { [%clk 0:24:28.7] } 5... c5 { [%clk 0:22:15.2] } 6. Qe3+ { [%clk 0:23:44.6] } 6... Be7 { [%clk 0:22:00.3] } 7. Nc3 { [%clk 0:23:13.6] } 7... O-O { [%clk 0:21:14] } 8. Nh3 { [%clk 0:21:57.5] } 8... Nc6 { [%clk 0:20:54.3] } 9. O-O { [%clk 0:20:53] } 9... Re8 { [%clk 0:19:05.1] } 10. Nf4 { [%clk 0:20:32.1] } 10... Nb4 { [%clk 0:17:51.9] } 11. Qd2 { [%clk 0:20:34.3] } 11... d6 { [%clk 0:15:54.9] } 12. a3 { [%clk 0:20:34.1] } 12... Nc6 { [%clk 0:16:02.4] } 13. Nfd5 { [%clk 0:19:48.4] } 13... Nxd5 { [%clk 0:16:04.9] } 14. Nxd5 { [%clk 0:19:37.9] } 14... Nd4 { [%clk 0:15:52.7] } 15. Qd1 { [%clk 0:18:08.1] } 15... Be6 { [%clk 0:13:56.1] } 16. e3 { [%clk 0:17:12.8] } 16... Bxd5 { [%clk 0:13:37.5] } 17. Bxd5 { [%clk 0:17:06.6] } 17... Nc6 { [%clk 0:13:37.1] } 18. b3 { [%clk 0:13:52.4] } 18... Bf6 { [%clk 0:13:00.3] } 19. Rb1 { [%clk 0:13:54.9] } 19... Qd7 { [%clk 0:12:06.2] } 20. Bb2 { [%clk 0:13:48.3] } 20... Bxb2 { [%clk 0:11:43.8] } 21. Rxb2 { [%clk 0:13:54.5] } 21... Rad8 { [%clk 0:10:37] } 22. Rd2 { [%clk 0:13:38.1] } 22... Ne5 { [%clk 0:10:00.2] } 23. Bg2 { [%clk 0:12:36.3] } 23... b6 { [%clk 0:09:35.3] } 24. Rd5 { [%clk 0:11:50.3] } 24... Qe6 { [%clk 0:08:42.2] } 25. Qd2 { [%clk 0:11:36.4] } 25... Qf6 { [%clk 0:08:11.4] } 26. Rd1 { [%clk 0:10:29.6] } 26... Re6 { [%clk 0:08:11.5] } 27. f4 { [%clk 0:08:21.3] } 27... Ng4 { [%clk 0:06:11.2] } 28. e4 { [%clk 0:08:15] } 28... Qh6 { [%clk 0:05:52.3] } 29. Bf3 { [%clk 0:05:54.5] } 29... Nf6 { [%clk 0:05:53] } 30. e5 { [%clk 0:04:45.3] } 30... Nxd5 { [%clk 0:05:18.8] } 31. Bxd5 { [%clk 0:04:18.3] } 31... dxe5 { [%clk 0:05:12.4] } 32. fxe5 { [%clk 0:03:14.8] } 32... Qxd2 { [%clk 0:05:16.8] } 33. Rxd2 { [%clk 0:03:20.7] } 33... Kf8 { [%clk 0:04:59.8] } 34. Rf2 { [%clk 0:03:09.5] } 34... Rxd5 { [%clk 0:04:37.5] } 35. cxd5 { [%clk 0:03:14.5] } 35... Rxe5 { [%clk 0:04:45] } 36. Rd2 { [%clk 0:03:15.8] } 36... Ke7 { [%clk 0:04:49.7] } 37. d6+ { [%clk 0:03:10.5] } 37... Kd7 { [%clk 0:04:56.5] } 38. Kf2 { [%clk 0:03:00.8] } 38... Re6 { [%clk 0:05:00.9] } 39. b4 { [%clk 0:02:35.2] } 39... cxb4 { [%clk 0:04:53.2] } 40. axb4 { [%clk 0:02:42.1] } 40... Rxd6 { [%clk 0:05:00.7] } 41. Re2 { [%clk 0:02:41.6] } 41... Rd4 { [%clk 0:05:00.8] } 42. b5 { [%clk 0:02:44.3] } 42... Rd5 { [%clk 0:04:31.8] } 43. Rb2 { [%clk 0:02:44.1] } 43... Ke6 { [%clk 0:04:30.7] } 44. Ke3 { [%clk 0:02:43.5] } 44... f5 { [%clk 0:04:28.2] } 45. Rc2 { [%clk 0:02:34.2] } 45... Rxb5 { [%clk 0:04:25.9] } 46. Rc7 { [%clk 0:02:42.1] } 46... Kf6 { [%clk 0:04:26.9] } 47. Rxa7 { [%clk 0:02:44] } 47... Rb3+ { [%clk 0:04:26.6] } 48. Kf2 { [%clk 0:02:36.8] } 48... Rb2+ { [%clk 0:04:21.9] } 49. Kg1 { [%clk 0:02:42.8] } 49... h6 { [%clk 0:04:17.5] } 50. Rb7 { [%clk 0:02:35.5] } 50... b5 { [%clk 0:04:18.5] } 51. h4 { [%clk 0:02:21.7] } 51... Kg6 { [%clk 0:03:55.3] } 52. Rb6+ { [%clk 0:02:20.6] } 52... Kh5 { [%clk 0:03:59] } 53. Rb7 { [%clk 0:02:25.3] } 53... g5 { [%clk 0:04:03.3] } 54. hxg5 { [%clk 0:02:31.3] } 54... hxg5 { [%clk 0:04:08.5] } 55. Rf7 { [%clk 0:02:16.2] } 55... Kg4 { [%clk 0:04:12.8] } 0-1

[Event "Live Chess"]
[Site "Chess.com"]
[Date "2021.02.28"]
[Round "-"]
[White "Brookens, Lewis"]
[Black "Kerridge, Simon"]
[Result "1-0"]
[BlackElo "1398"]
[CurrentPosition "1Q2Q3/2q1bpk1/r2p3p/p1n1p1p1/8/3PB1P1/P3PPBP/2R3K1 b - -"]
[ECO "A10"]
[ECOUrl "https://www.chess.com/openings/English-Opening"]
[EndDate "2021.02.28"]
[EndTime "12:03:36"]
[Link "https://www.chess.com/live/game/8249646853"]
[StartTime "11:11:39"]
[Termination "Synthehol won by resignation"]
[TimeControl "1500+10"]
[Timezone "UTC"]
[UTCDate "2021.02.28"]
[UTCTime "11:11:39"]
[WhiteElo "1795"]

1. c4 { [%clk 0:25:10] } 1... d6 { [%clk 0:25:10] } 2. g3 { [%clk 0:25:07.8] } 2... Nf6 { [%clk 0:25:10.2] } 3. Bg2 { [%clk 0:25:04.8] } 3... e5 { [%clk 0:25:07.2] } 4. d3 { [%clk 0:23:46.2] } 4... Nbd7 { [%clk 0:23:21.8] } 5. Nf3 { [%clk 0:23:30.9] } 5... Be7 { [%clk 0:22:39.2] } 6. O-O { [%clk 0:23:23.5] } 6... c6 { [%clk 0:22:10.8] } 7. Nc3 { [%clk 0:21:13.1] } 7... Qc7 { [%clk 0:20:40.6] } 8. Bd2 { [%clk 0:19:35.8] } 8... h6 { [%clk 0:20:30.7] } 9. b4 { [%clk 0:17:51.2] } 9... g5 { [%clk 0:20:12.2] } 10. b5 { [%clk 0:17:18.8] } 10... Nf8 { [%clk 0:20:05.1] } 11. bxc6 { [%clk 0:17:01.7] } 11... bxc6 { [%clk 0:20:09.9] } 12. Qa4 { [%clk 0:16:20.8] } 12... Ne6 { [%clk 0:19:21.1] } 13. Ne1 { [%clk 0:15:53.2] } 13... Bb7 { [%clk 0:17:02.2] } 14. Be3 { [%clk 0:13:05.3] } 14... a6 { [%clk 0:13:26.8] } 15. Nd5 { [%clk 0:10:57.9] } 15... Nxd5 { [%clk 0:12:56.9] } 16. cxd5 { [%clk 0:10:54.7] } 16... Nd8 { [%clk 0:12:15.4] } 17. Nc2 { [%clk 0:09:00.1] } 17... O-O { [%clk 0:11:34.4] } 18. Nb4 { [%clk 0:08:22.6] } 18... a5 { [%clk 0:06:39] } 19. Nxc6 { [%clk 0:08:04.5] } 19... Bxc6 { [%clk 0:04:50.6] } 20. dxc6 { [%clk 0:08:04.5] } 20... Ra6 { [%clk 0:04:27.5] } 21. Rfc1 { [%clk 0:07:24.6] } 21... Ne6 { [%clk 0:04:34.4] } 22. Rab1 { [%clk 0:06:57.6] } 22... Rb8 { [%clk 0:04:33.7] } 23. Rb7 { [%clk 0:04:41.1] } 23... Rxb7 { [%clk 0:02:37.3] } 24. cxb7 { [%clk 0:04:32] } 24... Nc5 { [%clk 0:02:45] } 25. Qe8+ { [%clk 0:04:06] } 25... Kg7 { [%clk 0:02:48.7] } 26. b8=Q { [%clk 0:04:06.7] } 1-0